[Event "Sardinia World Festival-A 2024"]
[Site "Orosei"]
[Date "2024.04.28"]
[Round "2.4"]
[White "Lumachi, Gabriele"]
[Black "Pichot, Alan"]
[Result "0-1"]
[ECO "D37"]
[WhiteElo "2413"]
[BlackElo "2644"]
[Annotator "TA"]
[PlyCount "102"]
[EventDate "2024.04.26"]
[EventType "swiss"]
[EventCountry "ITA"]
[SourceTitle "playchess.com"]
[Source "ChessBase"]
[SourceQuality "1"]
[TimeControl "40/5400+30:1800+30"]

{[%evp 9,102,34,35,29,28,24,33,13,20,16,29,29,23,19,18,16,20,17,11,8,24,10,39,40,40,47,35,42,44,50,61,0,0,0,0,-9,-12,-6,-4,-6,-12,-6,-5,-12,-9,-55,-50,-46,-45,-56,-53,-37,-45,-87,-33,-72,-52,-52,-20,-33,-20,-80,-25,-52,-52,-53,-53,-53,-53,-53,-53,-53,-53,-53,-53,-53,-52,-44,-26,-50,-32,-34,-34,-64,-63,-153,-158,-153,-153,-164,-164,-334,-320,-360,-353]} 1. d4 {[%emt 0:00:03]} Nf6 {[%emt 0:01:49]} 2. c4 {[%emt 0:00:14]} e6 {[%emt 0:00:15]} 3. Nf3 {[%emt 0:00:17]} d5 {[%emt 0:00:33]} 4. Nc3 {[%emt 0:00:09]} h6 {[%emt 0:00:28]} 5. Bf4 {[%emt 0:01:56]} Bd6 {[%emt 0:00:28]} 6. Bxd6 {[%emt 0:00:18]} Qxd6 {[%emt 0:00:07]} 7. e3 {[%emt 0:03:32]} O-O {[%emt 0:00:21]} 8. Qc2 {[%emt 0:03:09] White is slightly better.} a6 {[%emt 0:08:07]} 9. cxd5 {[%emt 0:03:12]} exd5 {[%emt 0:00:08]} 10. h3 {[%emt 0:00:27]} b6 {[%emt 0:05:49]} 11. Be2 {[%emt 0:06:15]} Bb7 {[%emt 0:01:00]} 12. O-O {[%emt 0:01:57]} Nbd7 {[%emt 0:02:07]} 13. a4 {[%emt 1:15:31]} c5 {[%emt 0:01:55]} 14. Rfd1 {[%emt 0:00:00]} Rac8 {[%emt 0:02:20]} 15. Qb3 {[%emt 0:00:00]} Qb8 {[%emt 0:12:06] [#]} 16. Ne5 $1 {[%emt 0:00:00]} Nxe5 {[%emt 0:25:36]} (16... c4 17. Nxd7) 17. dxe5 {[%emt 0:00:00]} Qxe5 {[%emt 0:00:26] ...d4 is the strong threat.} 18. Qxb6 {[%emt 0:00:00]} Qc7 {[%emt 0:06:48]} 19. Qxc7 {[%emt 0:00:00]} Rxc7 {[%emt 0:00:08]} 20. Bf3 {[%emt 0:00:00]} (20. Ra3 $14) 20... Rd8 {[%emt 0:03:53]} 21. Ne2 {[%emt 0:00:00]} d4 {[%emt 0:03:30]} 22. exd4 {[%emt 0:00:00]} Bxf3 {[%emt 0:00:15]} 23. gxf3 {[%emt 0:00:00]} cxd4 {[%emt 0:03:59]} 24. Rxd4 {[%emt 0:00:00]} Rxd4 {[%emt 0:00:13]} 25. Nxd4 $11 {[%emt 0:00:00][%mdl 4096] Endgame. KRN-KRN} Rc4 {[%emt 0:00:05]} 26. Nb3 {[%emt 0:00:00]} Nd5 {[%emt 0:01:27]} 27. Rd1 {[%emt 0:00:00]} (27. h4 $11 {feels stronger.}) 27... Nf4 $15 {[%emt 0:00:45]} 28. Kh2 {[%emt 0:01:16]} Rxa4 {[%emt 0:07:30]} 29. Nc5 {[%emt 0:01:56]} Rb4 {[%emt 0:01:22]} 30. Nxa6 {[%emt 0:01:29]} Rxb2 {[%emt 0:00:26]} 31. h4 {[%emt 0:00:37]} Rc2 {[%emt 0:06:12]} ({Black should play} 31... Rxf2+ $17 32. Kg3 Ra2 33. Kxf4 Rxa6) 32. Nb8 {[%emt 0:02:11]} g6 {[%emt 0:04:20]} (32... Rxf2+ 33. Kg3 $16) 33. Nd7 {[%emt 0:00:27]} Kg7 {[%emt 0:00:32][%cal Of4h5]} (33... Rxf2+ $2 34. Kg3 $18) 34. Ne5 {[%emt 0:01:52]} Re2 {[%emt 0:01:41]} (34... Rxf2+ $2 {loses.} 35. Kg3 Rb2 36. Kxf4 $18) 35. Nd3 {[%emt 0:00:29]} (35. Ng4 $11 {keeps the balance.}) 35... Ne6 {[%emt 0:00:24] Black is more active.} (35... Nxd3 $17 36. Rxd3 Ra2 (36... Rxf2+ 37. Kg3 $11)) 36. Kg3 {[%emt 0:00:15]} Nd4 {[%emt 0:00:15]} 37. h5 {[%emt 0:00:44]} gxh5 {[%emt 0:01:05]} 38. Nf4 {[%emt 0:00:38]} Nf5+ {[%emt 0:00:11]} 39. Kg2 {[%emt 0:00:32]} Ne3+ {[%emt 0:00:27]} 40. Kg3 {[%emt 0:00:32] Rg1 would now be deadly.} h4+ {[%emt 0:00:52]} 41. Kxh4 {[%emt 0:06:04] Strongly threatening Rg1+.} Rxf2 {[%emt 0:00:30]} ({Much worse is} 41... Nxd1 42. Nxe2 Nxf2 43. Nd4 $11) 42. Rg1+ {[%emt 0:06:29]} Kf6 {[%emt 0:01:15]} 43. Kg3 {[%emt 0:02:00]} Rd2 {[%emt 0:03:34]} 44. Re1 {[%emt 0:01:30]} Nf5+ {[%emt 0:07:23]} 45. Kg4 {[%emt 0:00:05]} Ng7 {[%emt 0:01:27]} 46. Ne2 {[%emt 0:07:20]} Ne6 {[%emt 0:03:23][%cal Oh6h5]} 47. f4 {[%emt 0:02:53] [#]} ({Better is} 47. Ng3 $15 Rd4+ 48. Re4) 47... h5+ $1 $17 {[%emt 0:02:49][%mdl 512]} 48. Kf3 {[%emt 0:00:31]} (48. Kh4 Ng7) 48... Rd3+ {[%emt 0:00:21]} 49. Kf2 {[%emt 0:00:44]} h4 {[%emt 0:02:03]} 50. Ra1 $2 {[%emt 0:01:38] [#]} (50. Rb1 {might work better.}) 50... Nc5 $1 $19 {[%emt 0:12:50]} 51. Rh1 {[%emt 0:02:03]} Ne4+ {[%emt 0:00:00] Weighted Error Value: White=0.16 (very precise) /Black=0.06 (flawless) .  Mistake:       	White=5     	Black=2      Inaccurate:     	White=4     	Black=2      OK:         	White=18    	Black=18     Best:        	White=3     	Black=7      Strong:       	---       	Black=1      Brilliant:      	---       	Black=1} 0-1

[Event "Sardinia World Festival-A 2024"]
[Site "Orosei"]
[Date "2024.04.28"]
[Round "2.5"]
[White "Lagarde, Maxime"]
[Black "Favaloro, Andrea"]
[Result "1/2-1/2"]
[ECO "C84"]
[WhiteElo "2640"]
[BlackElo "2412"]
[Annotator "TA"]
[PlyCount "71"]
[EventDate "2024.04.26"]
[EventType "swiss"]
[EventCountry "ITA"]
[SourceTitle "playchess.com"]
[Source "ChessBase"]
[SourceQuality "1"]
[TimeControl "40/5400+30:1800+30"]

{[%evp 15,71,16,31,17,30,12,20,14,12,19,17,21,22,31,27,18,41,37,36,25,26,17,16,0,17,0,4,13,1,0,0,-52,-32,-57,-58,-62,-66,-62,-34,-28,-31,-62,-44,-51,-46,-52,-30,-49,-51,-57,-42,-54,-60,-88,30,35,28,29]} 1. e4 {[%emt 0:00:02]} e5 {[%emt 0:00:22]} 2. Nf3 {[%emt 0:00:06]} Nc6 {[%emt 0:00:15]} 3. Bb5 {[%emt 0:00:04][%cal Bf1b5,Bb5a4,Ba4b3][%mdl 32]} a6 {[%emt 0:00:25]} 4. Ba4 {[%emt 0:00:05]} Nf6 {[%emt 0:00:14]} 5. O-O {[%emt 0:00:17]} Be7 {[%emt 0:00:18]} 6. d3 {[%emt 0:00:32]} b5 {[%emt 0:00:16]} 7. Bb3 {[%emt 0:00:04]} d6 {[%emt 0:01:18]} 8. c3 {[%emt 0:00:05]} O-O {[%emt 0:00:42]} 9. h3 {[%emt 0:00:06]} Nb8 {[%emt 0:01:47][%cal Bc6b8,Bb8d7,Bd7c5,Bc5e6][%mdl 32]} 10. a4 {[%emt 0:01:04]} Bb7 {[%emt 0:00:43]} 11. axb5 {[%emt 0:00:07] The position is equal.} axb5 {[%emt 0:00:07]} 12. Rxa8 {[%emt 0:00:04]} Bxa8 {[%emt 0:00:06]} 13. Na3 {[%emt 0:00:03][%cal Bb1a3,Ba3c2,Bc2e3,Be3f5][%mdl 32]} Bc6 {[%emt 0:03:20]} 14. Nc2 {[%emt 0:16:40]} Nbd7 {[%emt 0:01:55]} 15. Ne3 {[%emt 0:00:30]} Nc5 {[%emt 0:03:23]} 16. Bc2 {[%emt 0:01:03]} Re8 {[%emt 0:10:16]} 17. b4 {[%emt 0:04:24]} Ne6 {[%emt 0:05:40]} 18. Bb3 {[%emt 0:02:23]} Bf8 {[%emt 0:04:49]} 19. Nf5 {[%emt 0:05:12]} Bb7 {[%emt 0:04:03]} 20. Be3 {[%emt 0:09:59]} c5 {[%emt 0:08:34][%cal Oc5c4]} 21. bxc5 {[%emt 0:01:33]} Nxc5 {[%emt 0:00:46]} 22. Bxc5 {[%emt 0:06:29]} dxc5 {[%emt 0:00:48]} 23. c4 {[%emt 0:02:46]} (23. Ne3 $11) 23... b4 $15 {[%emt 0:02:52]} 24. Ne3 {[%emt 0:02:59]} Qd6 {[%emt 0:03:37]} 25. Nd5 {[%emt 0:00:45]} Ra8 {[%emt 0:01:05]} 26. Qc2 {[%emt 0:03:43]} Ra3 {[%emt 0:06:35]} 27. Qb2 {[%emt 0:03:58]} Nd7 {[%emt 0:03:40]} 28. Ne1 {[%emt 0:03:17]} g6 {[%emt 0:03:58]} 29. Nc2 {[%emt 0:00:16]} Ra8 {[%emt 0:02:59]} 30. Ra1 {[%emt 0:00:53]} Ra6 {[%emt 0:09:28]} 31. Ra4 {[%emt 0:05:18]} Rxa4 {[%emt 0:03:52]} 32. Bxa4 {[%emt 0:00:05]} Bxd5 {[%emt 0:01:45]} 33. cxd5 {[%emt 0:00:21] [#]} c4 $1 {[%emt 0:04:50]} 34. Bxd7 {[%emt 0:11:07]} (34. dxc4 Nf6) 34... c3 {[%emt 0:04:54] [#]} (34... cxd3 35. Nxb4 Qxb4 36. Qxb4 Bxb4 37. Kf1 $19) (34... Qxd7 $17 35. dxc4 (35. Qxe5 $2 {loses.} c3 $19) 35... Qa4) 35. Qxb4 $11 {[%emt 0:01:46]} Qxb4 {[%emt 0:00:05]} 36. Nxb4 {[%emt 0:00:06] Weighted Error Value: White=0.11 (very precise) /Black=0.10 (very precise) .  Mistake:       	White=1     	Black=1      Inaccurate:     	White=2     	Black=1      OK:         	White=9     	Black=10     Best:        	---       	Black=1      Brilliant:      	White=1     	Black=1} 1/2-1/2

[Event "Sardinia World Festival-A 2024"]
[Site "Orosei"]
[Date "2024.04.28"]
[Round "2.6"]
[White "Kochavi, Ori"]
[Black "Murzin, Volodar"]
[Result "1/2-1/2"]
[ECO "D02"]
[WhiteElo "2406"]
[BlackElo "2632"]
[Annotator "TA"]
[PlyCount "56"]
[EventDate "2024.04.26"]
[EventType "swiss"]
[EventCountry "ITA"]
[SourceTitle "playchess.com"]
[Source "ChessBase"]
[SourceQuality "1"]
[TimeControl "40/5400+30:1800+30"]

{[%evp 9,56,7,10,4,0,0,0,10,4,8,5,7,6,5,13,7,4,0,12,0,4,0,0,-25,0,-21,-8,-14,-18,-23,-20,-27,-16,-13,-14,-11,-10,-10,-9,-17,-17,-19,-20,-14,-9,-16,-6,-10,-6]} 1. d4 {[%emt 0:00:05]} Nf6 {[%emt 0:02:40]} 2. Nf3 {[%emt 0:00:14]} d5 {[%emt 0:13:17]} 3. c3 {[%emt 0:00:29]} c6 {[%emt 0:02:35]} 4. Qc2 {[%emt 0:01:54]} Bg4 {[%emt 0:03:22]} 5. Ne5 {[%emt 0:00:06]} Bh5 {[%emt 0:03:17]} 6. Qf5 {[%emt 0:00:11]} Bg6 {[%emt 0:04:20]} 7. Qh3 {[%emt 0:01:29]} Bxb1 {[%emt 0:00:10]} 8. Rxb1 {[%emt 0:00:06]} Nbd7 {[%emt 0:00:04]} 9. Nxd7 {[%emt 0:03:05]} Qxd7 {[%emt 0:07:22]} 10. Qxd7+ {[%emt 0:00:07]} Nxd7 {[%emt 0:07:18]} 11. Bf4 {[%emt 0:06:56]} g6 {[%emt 0:02:06]} 12. e3 {[%emt 0:07:40]} Bg7 {[%emt 0:00:31]} 13. Be2 {[%emt 0:03:21]} O-O {[%emt 0:06:00]} 14. O-O {[%emt 0:00:15]} e5 {[%emt 0:00:25]} 15. dxe5 {[%emt 0:02:28]} Bxe5 {[%emt 0:00:53]} 16. Bh6 {[%emt 0:01:39]} Bg7 {[%emt 0:02:47]} 17. Bf4 {[%emt 0:00:07]} Rfe8 {[%emt 0:00:33]} 18. Rfc1 {[%emt 0:07:38]} Nc5 {[%emt 0:02:34]} 19. h3 {[%emt 0:07:59]} a5 {[%emt 0:03:09]} 20. Rc2 {[%emt 0:08:49]} a4 {[%emt 0:01:20]} 21. c4 {[%emt 0:06:35] aiming for cxd5. The position is equal.} d4 {[%emt 0:01:12]} 22. exd4 {[%emt 0:01:47]} Ne6 {[%emt 0:13:27]} 23. Be3 {[%emt 0:08:38]} Bxd4 {[%emt 0:00:19]} 24. Bd2 {[%emt 0:01:46]} Rad8 {[%emt 0:07:50][%cal Od4f2]} 25. Bf1 {[%emt 0:03:04]} Nc5 {[%emt 0:03:56][%cal Od4f2,Be6c5,Bc5e4,Be4g3][%mdl 32] White should prevent ...Bxf2+!} 26. Be1 {[%emt 0:10:20]} Ne4 {[%emt 0:02:37]} 27. Be2 {[%emt 0:03:22]} Ng3 {[%emt 0:07:12]} 28. Bf3 {[%emt 0:00:18]} Nf5 {[%emt 0:00:55] Not much happened in this game.   Weighted Error Value: White=0.04 (flawless) /Black=0.04 (flawless) .  OK:         	White=11    	Black=7} 1/2-1/2

[Event "Sardinia World Festival-A 2024"]
[Site "Orosei"]
[Date "2024.04.28"]
[Round "2.7"]
[White "Dardha, Daniel"]
[Black "Atanasov, Anthony"]
[Result "1-0"]
[ECO "A11"]
[WhiteElo "2630"]
[BlackElo "2407"]
[Annotator "TA"]
[PlyCount "79"]
[EventDate "2024.04.26"]
[EventType "swiss"]
[EventCountry "ITA"]
[SourceTitle "playchess.com"]
[Source "ChessBase"]
[SourceQuality "1"]
[TimeControl "40/5400+30:1800+30"]

{[%evp 9,79,4,17,19,13,-14,-4,-28,-8,-8,-12,3,0,-23,-21,-28,-18,-20,28,37,29,0,53,45,48,56,54,47,51,41,53,54,102,18,84,93,84,58,139,139,138,115,190,203,228,224,384,333,326,333,582,579,576,570,489,465,635,630,645,636,729,684,29988,29979,29993,29994,29996,29997,29997,29997,29997,29998]} 1. Nf3 {[%emt 0:01:33]} d5 {[%emt 0:00:19]} 2. g3 {[%emt 0:00:08]} Bf5 {[%emt 0:01:00]} 3. Bg2 {[%emt 0:00:27]} c6 {[%emt 0:00:07]} 4. c4 {[%emt 0:00:46]} dxc4 {[%emt 0:00:12]} 5. a4 {[%emt 0:15:21]} e6 {[%emt 0:01:12]} 6. O-O {[%emt 0:06:04]} Nf6 {[%emt 0:00:30]} 7. b3 {[%emt 0:07:48]} cxb3 {[%emt 0:01:37]} 8. Qxb3 {[%emt 0:00:04] The position is equal.} Qb6 {[%emt 0:00:16]} 9. Qa2 {[%emt 0:00:19]} Bb4 {[%emt 0:09:50]} 10. a5 {[%emt 0:03:32]} Qc7 {[%emt 0:03:24]} 11. Nd4 {[%emt 0:16:55]} O-O {[%emt 0:07:36]} 12. Nxf5 {[%emt 0:06:03]} exf5 {[%emt 0:00:03]} 13. Qc2 {[%emt 0:01:16]} Re8 {[%emt 0:08:15]} (13... Qd7 {might be stronger.}) 14. Bb2 $1 $11 {[%emt 0:02:20]} Ne4 {[%emt 0:15:35]} (14... Rxe2 15. Bxf6 gxf6 16. Qxf5 $16) 15. d3 {[%emt 0:03:39]} Nc5 {[%emt 0:01:54] [#]} ({Better is} 15... Nd6 $11) 16. Bxg7 $1 $14 {[%emt 0:04:39]} Kxg7 {[%emt 0:00:04]} 17. Qb2+ {[%emt 0:00:04]} Qe5 {[%emt 0:00:20]} 18. Qxb4 {[%emt 0:00:20] Threatens to win with d4.} (18. d4 Qxe2 19. Qxb4 (19. dxc5+ $2 Qxb2 $19) 19... Nba6 $11) 18... Nba6 $1 {[%emt 0:06:57]} (18... Qxa1 $2 {too greedy.} 19. Nc3 $18 (19. Qxc5 Re5 $17) (19. Qxc5 Re5 $17)) 19. Qc3 {[%emt 0:01:02] Hoping for d4.} Rad8 {[%emt 0:05:25]} 20. Ra2 {[%emt 0:03:55][%cal Ba1a2,Ba2c2,Bc2c4][%mdl 32]} Rd4 {[%emt 0:08:33]} (20... Nc7 $14) 21. Bf3 {[%emt 0:04:46]} (21. Nd2 Ra4 22. Qxe5+ Rxe5 23. Rxa4 Nxa4 $16) (21. Rd1 $16) 21... f6 {[%emt 0:15:55]} (21... Rb4 $11) 22. Nd2 $16 {[%emt 0:08:34][%cal Bb1d2,Bd2c4,Bc4e3][%mdl 32] [#] And now Nc4 would win.} Rb4 {[%emt 0:05:05]} 23. Rc2 {[%emt 0:03:51]} Na4 {[%emt 0:03:28]} (23... Qxc3 $14 24. Rxc3 Rd8) 24. Qa3 $36 {[%emt 0:00:29][%mdl 2048] White is on the roll.} Qxa5 {[%emt 0:00:54]} 25. Nc4 {[%emt 0:01:03]} Qc5 {[%emt 0:00:25]} (25... Qc7 $16) 26. Ne3 $18 {[%emt 0:02:23]} Qb5 {[%emt 0:01:46]} 27. Rc4 {[%emt 0:01:03]} Re5 $2 {[%emt 0:01:20]} (27... Rxc4 {is a better defense.} 28. dxc4 (28. Nxc4 Qb4 $18) 28... Qa5) 28. Ra1 {[%emt 0:01:01] Rxb4 would now be deadly.} Nb6 {[%emt 0:01:57]} 29. Rxb4 {[%emt 0:00:17]} Nxb4 {[%emt 0:00:05]} (29... Qxb4 30. Qxb4 Nxb4 31. Rxa7 Kg6 32. Rxb7 N6d5) 30. Qxa7 {[%emt 0:00:26]} N6d5 {[%emt 0:00:54]} 31. Nc4 {[%emt 0:02:50][%cal Oa1a5]} Nc2 {[%emt 0:00:20]} 32. Nxe5 {[%emt 0:01:09]} fxe5 {[%emt 0:00:40]} 33. Bxd5 {[%emt 0:02:13][%cal Oa7b8,Bf3d5,Bd5c4,Bc4f7][%mdl 32] Qb8! is the strong threat.} Nxa1 {[%emt 0:00:20][%mdl 4096] Endgame. KQB-KQN} 34. Bc4 {[%emt 0:00:09]} Qb1+ {[%emt 0:00:25]} 35. Kg2 {[%emt 0:00:01] Threatening mate with Qc5.} Nc2 {[%emt 0:00:42]} 36. Qc5 {[%emt 0:00:12] White mates.} Ne1+ {[%emt 0:00:30]} 37. Kh3 {[%emt 0:00:05]} Qb2 {[%emt 0:01:05]} 38. Qe7+ {[%emt 0:00:07]} Kg6 {[%emt 0:00:00]} 39. Bf7+ {[%emt 0:00:09]} Kg7 {[%emt 0:00:00]} 40. Be8+ {[%emt 0:00:06] Weighted Error Value: White=0.10 (very precise) /Black=0.48.  Mistake:       	White=1     	Black=8      Inaccurate:     	White=3     	Black=1      OK:         	White=14    	Black=9      Best:        	White=3     	Black=1      Strong:       	White=1     	Black=1      Brilliant:      	White=1     	---} 1-0

[Event "Sardinia World Festival-A 2024"]
[Site "Orosei"]
[Date "2024.04.28"]
[Round "2.8"]
[White "Vantika Agrawal"]
[Black "Chigaev, Maksim"]
[Result "1/2-1/2"]
[ECO "E18"]
[WhiteElo "2398"]
[BlackElo "2621"]
[Annotator "TA"]
[PlyCount "98"]
[EventDate "2024.04.26"]
[EventType "swiss"]
[EventCountry "ITA"]
[SourceTitle "playchess.com"]
[Source "ChessBase"]
[SourceQuality "1"]
[TimeControl "40/5400+30:1800+30"]

{[%evp 15,98,8,26,27,18,31,27,5,12,16,14,16,20,23,31,0,0,0,4,3,10,0,14,13,10,12,12,11,25,0,13,0,0,0,0,0,0,0,0,0,0,0,0,-11,-8,-27,0,0,0,0,0,0,0,0,0,0,0,0,0,0,0,0,0,0,0,0,0,0,0,0,0,0,0,0,0,0,0,0,0,0,0,0,0,0,0]} 1. d4 {[%emt 0:01:24]} Nf6 {[%emt 0:00:16]} 2. c4 {[%emt 0:00:32]} e6 {[%emt 0:00:11]} 3. Nf3 {[%emt 0:00:27]} b6 {[%emt 0:00:15]} 4. g3 {[%emt 0:00:20]} Bb7 {[%emt 0:00:08]} 5. Bg2 {[%emt 0:00:49]} Be7 {[%emt 0:00:09]} 6. O-O {[%emt 0:00:17]} O-O {[%emt 0:00:08]} 7. Nc3 {[%emt 0:00:42]} Ne4 {[%emt 0:00:09]} 8. Bd2 {[%emt 0:00:36]} f5 {[%emt 0:00:08]} 9. Ne5 {[%emt 0:02:33][%cal Bf3e5,Be5d3,Bd3f4][%mdl 32]} d6 {[%emt 0:00:11]} 10. Nd3 {[%emt 0:02:13]} Qe8 {[%emt 0:00:08]} 11. Nf4 {[%emt 0:16:02] [#] aiming for Nxe4. White has an edge.} Nxc3 {[%emt 0:00:11]} 12. Bxc3 {[%emt 0:00:44]} Bxg2 {[%emt 0:00:10]} 13. Kxg2 {[%emt 0:01:59]} Bg5 {[%emt 0:00:09]} 14. e3 {[%emt 0:04:16]} Bxf4 {[%emt 0:00:58]} 15. exf4 {[%emt 0:06:32]} (15. Qf3 $5 Qc6 16. Qxc6 Nxc6 17. exf4 $11) 15... Qc6+ {[%emt 0:00:09]} 16. Qf3 {[%emt 0:07:19]} Qxf3+ {[%emt 0:00:08]} 17. Kxf3 {[%emt 0:00:09]} a5 {[%emt 0:03:31]} 18. Rfe1 {[%emt 0:07:34]} Kf7 {[%emt 0:00:44]} 19. d5 {[%emt 0:10:06]} exd5 {[%emt 0:00:33]} 20. cxd5 {[%emt 0:00:19]} Nd7 {[%emt 0:09:07]} 21. Re3 {[%emt 0:02:25]} Rfe8 {[%emt 0:01:47]} 22. b3 {[%emt 0:06:14]} Nc5 {[%emt 0:05:44]} 23. Bd4 {[%emt 0:01:24]} Ne4 {[%emt 0:08:20]} 24. Rc1 {[%emt 0:02:27]} Re7 {[%emt 0:03:08]} 25. Rc2 {[%emt 0:03:50]} Rae8 {[%emt 0:12:27]} 26. Rc1 {[%emt 0:14:02]} Nc5 {[%emt 0:06:27]} 27. Rc4 {[%emt 0:01:44]} g6 {[%emt 0:02:02]} 28. a3 {[%emt 0:03:32]} h6 {[%emt 0:26:38]} 29. h3 {[%emt 0:03:39]} h5 {[%emt 0:00:16]} 30. h4 {[%emt 0:00:39]} Ra8 {[%emt 0:06:59]} 31. Rc2 {[%emt 0:00:26] The position is equal.} Ra7 {[%emt 0:03:08]} 32. Rce2 {[%emt 0:00:38]} Rxe3+ {[%emt 0:00:43]} 33. Rxe3 $11 {[%emt 0:00:05][%mdl 4096] Endgame. KRB-KRN} a4 {[%emt 0:00:14]} 34. b4 {[%emt 0:00:38]} Nb3 {[%emt 0:00:04]} 35. Bc3 {[%emt 0:00:40] [#] Black must now prevent Re6.} c5 {[%emt 0:02:59]} 36. dxc6 {[%emt 0:00:23] And now b5 would win.} b5 $1 {[%emt 0:00:05]} 37. Rd3 {[%emt 0:00:48]} Ke6 {[%emt 0:00:06]} 38. Bh8 {[%emt 0:00:30]} Rc7 {[%emt 0:00:18]} 39. Re3+ {[%emt 0:00:29]} Kd5 {[%emt 0:00:40]} 40. Rd3+ {[%emt 0:00:24]} Ke6 {[%emt 0:01:46]} 41. Re3+ {[%emt 0:04:14]} Kf7 {[%emt 0:01:04][%cal Oc7c8]} 42. Ke2 {[%emt 0:08:46]} (42. Rc3 Kg8 43. Bf6 Nd2+ 44. Ke3 Ne4 $19) 42... Rxc6 {[%emt 0:00:49]} 43. Rc3 {[%emt 0:03:42]} Rc4 {[%emt 0:00:14]} 44. Kd3 {[%emt 0:01:10]} d5 {[%emt 0:17:42]} 45. f3 {[%emt 0:00:37]} Ke6 {[%emt 0:00:13]} 46. Be5 {[%emt 0:02:15]} Kd7 {[%emt 0:04:57]} 47. Bf6 {[%emt 0:01:12]} Ke6 {[%emt 0:00:11]} 48. Be5 {[%emt 0:00:05]} Kd7 {[%emt 0:00:07]} 49. Bf6 {[%emt 0:00:04]} Ke6 {[%emt 0:00:04] An uneventful encounter.   Weighted Error Value: White=0.04 (flawless) /Black=0.03 (flawless) .  Inaccurate:     	White=1     	Black=1      OK:         	White=19    	Black=17     Best:        	---       	Black=2      Strong:       	---       	Black=1} 1/2-1/2

[Event "Sardinia World Festival-A 2024"]
[Site "Orosei"]
[Date "2024.04.28"]
[Round "2.9"]
[White "Moussard, Jules"]
[Black "Di Benedetto, Edoardo"]
[Result "1-0"]
[ECO "C10"]
[WhiteElo "2610"]
[BlackElo "2400"]
[Annotator "TA"]
[PlyCount "91"]
[EventDate "2024.04.26"]
[EventType "swiss"]
[EventCountry "ITA"]
[SourceTitle "playchess.com"]
[Source "ChessBase"]
[SourceQuality "1"]
[TimeControl "40/5400+30:1800+30"]

{[%evp 17,91,30,27,6,11,21,35,30,26,30,31,28,46,38,43,53,42,35,46,52,57,58,61,62,48,50,50,43,57,58,43,43,49,38,59,58,54,21,22,22,23,0,76,51,71,71,72,68,105,60,133,145,150,136,127,131,128,134,707,719,813,806,893,896,1007,983,1627,1627,29968,29972,29974,29975,29980,29979,29985,29986]} 1. e4 {[%emt 0:04:50]} e6 {[%emt 0:00:09]} 2. d4 {[%emt 0:00:10]} d5 {[%emt 0:00:04]} 3. Nc3 {[%emt 0:00:36]} dxe4 {[%emt 0:03:46]} 4. Nxe4 {[%emt 0:00:08]} Nd7 {[%emt 0:00:13]} 5. Nf3 {[%emt 0:01:55]} Ngf6 {[%emt 0:00:09]} 6. Nxf6+ {[%emt 0:01:58]} Nxf6 {[%emt 0:00:06]} 7. c3 {[%emt 0:03:26]} Be7 {[%emt 0:01:15]} 8. Bd3 {[%emt 0:02:35]} O-O {[%emt 0:00:44]} 9. Qe2 {[%emt 0:00:40]} b6 {[%emt 0:03:13]} 10. Bg5 {[%emt 0:04:05] Strongly threatening Bxf6.} Bb7 {[%emt 0:00:31]} 11. O-O-O {[%emt 0:02:06]} Bxf3 {[%emt 0:05:41]} 12. Qxf3 {[%emt 0:04:26] White is slightly better.} Qd5 {[%emt 0:01:48]} 13. Qxd5 {[%emt 0:04:04]} Nxd5 {[%emt 0:00:15]} 14. h4 {[%emt 0:06:53]} Rad8 {[%emt 0:08:17]} 15. Kc2 {[%emt 0:07:28]} h6 {[%emt 0:07:02]} 16. Bc1 {[%emt 0:00:32]} c5 {[%emt 0:01:01]} 17. dxc5 {[%emt 0:01:16]} Bxc5 {[%emt 0:00:19]} 18. Rhf1 {[%emt 0:05:08]} f5 {[%emt 0:05:50]} 19. Bc4 {[%emt 0:04:08]} Kf7 {[%emt 0:02:44]} 20. Rde1 {[%emt 0:03:25]} Be7 {[%emt 0:07:00]} 21. g3 {[%emt 0:01:58]} Bf6 {[%emt 0:03:59]} 22. Rd1 {[%emt 0:02:18]} g5 {[%emt 0:07:14]} 23. hxg5 {[%emt 0:00:48]} hxg5 {[%emt 0:00:17]} 24. Rh1 {[%emt 0:00:30]} Kg6 {[%emt 0:06:08] Repels Rh7} 25. a4 {[%emt 0:04:15]} Nc7 {[%emt 0:03:15]} 26. Rde1 {[%emt 0:04:54]} Rh8 {[%emt 0:00:47]} 27. Kb3 {[%emt 0:01:06]} (27. Bxe6 $2 {perishes.} Rxh1 28. Bxf5+ Kxf5 $19) 27... Rxh1 {[%emt 0:04:20]} 28. Rxh1 {[%emt 0:00:19]} g4 {[%emt 0:00:24]} 29. a5 {[%emt 0:05:21]} b5 {[%emt 0:03:19] [#]} (29... bxa5 $11 30. Ka4 Nd5) 30. Be2 $1 $16 {[%emt 0:00:17]} a6 {[%emt 0:00:16]} 31. f3 {[%emt 0:24:25]} gxf3 {[%emt 0:06:16]} 32. Bxf3 {[%emt 0:00:00]} Rd3 {[%emt 0:07:08]} 33. Bb7 {[%emt 0:00:00][%cal Og3g4]} Kg7 {[%emt 0:03:28]} ({Black should try} 33... Rd8 $14) 34. Re1 {[%emt 0:00:00]} e5 {[%emt 0:03:33][%cal Be6e5,Be5e4][%mdl 32] Prevents Bf4.} 35. Be3 {[%emt 0:00:00]} e4 {[%emt 0:00:14] [#]} 36. g4 $1 {[%emt 0:00:00][%cal Bg3g4,Bg4f5][%mdl 544]} Nd5 {[%emt 0:02:31]} 37. gxf5 {[%emt 0:00:00] Bc1 is the strong threat.} Bxc3 $2 {[%emt 0:02:12][%mdl 8192] Loses the game.} (37... Nxe3 $16 38. Bxe4 (38. Bxa6 Bg5 $11) 38... Rd1 39. Rxe3 Ra1 40. Rg3+ Kf8) 38. bxc3 $18 {[%emt 0:00:00]} Rxc3+ {[%emt 0:00:58]} 39. Kb2 {[%emt 0:00:00]} Rxe3 {[%emt 0:00:12][%mdl 4096] Endgame. KRB-KRN} 40. Rg1+ {[%emt 0:00:00]} Kf6 {[%emt 0:00:07]} 41. Bxd5 {[%emt 0:22:45] Black must now prevent Bb7.} Kxf5 {[%emt 0:30:12]} 42. Bb7 {[%emt 0:00:31]} b4 {[%emt 0:02:26]} 43. Bxa6 {[%emt 0:00:41] White mates.} Kf4 {[%emt 0:00:00]} 44. Bb5 {[%emt 0:00:00]} Ra3 {[%emt 0:00:00]} 45. Ra1 {[%emt 0:00:00]} e3 {[%emt 0:00:00]} 46. Rxa3 {[%emt 0:00:00] Weighted Error Value: White=0.05 (flawless) /Black=0.35.  Loses game:     	---       	Black=1      Mistake:       	---       	Black=2      Inaccurate:     	White=2     	Black=1      OK:         	White=16    	Black=13     Best:        	White=1     	---        Strong:       	White=1     	---} 1-0